bitfinex-derivatives/quotes_BTCF0:USTF0_20250318
["timestamp","ask_amount","ask_price","bid_price","bid_amount"]
[1742301604153,0.3975,82557.0,82556.0,0.2382395]
[1742301604330,0.28,82557.0,82556.0,0.2382395]
[1742301604534,0.07895916,82557.0,82556.0,0.3564395]
[1742301604844,0.00018164,82565.0,82564.0,0.1211278]
[1742301605040,0.23018164,82565.0,82564.0,0.6001278]
[1742301605344,0.23018164,82565.0,82564.0,0.6574278]
[1742301608034,0.23018164,82565.0,82564.0,0.7168278]
[1742301612851,0.10018164,82565.0,82564.0,0.7198278]
[1742301613047,0.1211064,82579.0,82564.0,0.7198278]
[1742301613048,0.0605423,82594.0,82584.0,0.1210985]
[1742301613238,0.43446,82585.0,82584.0,0.1210985]
[1742301613440,0.3163,82585.0,82584.0,0.1210985]
[1742301613639,0.437397,82585.0,82584.0,0.1798985]
[1742301614046,0.494697,82585.0,82584.0,0.1798985]
[1742301614554,0.553397,82585.0,82584.0,0.1798985]
[1742301615459,0.553397,82585.0,82584.0,0.1210985]
[1742301615747,0.1210999,82583.0,82582.0,0.1211014]
[1742301615952,0.1211014,82582.0,82581.0,0.02233901]
[1742301616148,0.4941014,82582.0,82581.0,0.1211029]
[1742301617154,0.373,82582.0,82581.0,0.14414147]
[1742301617358,0.373,82582.0,82581.0,0.26224147]
[1742301621645,0.373,82582.0,82581.0,0.26424147]
[1742301622249,0.373,82582.0,82581.0,0.26224147]
[1742301622463,0.373,82582.0,82581.0,0.26424147]
[1742301624957,0.3158,82582.0,82581.0,0.26424147]
[1742301625750,0.5547814,82582.0,82581.0,0.02503857]
[1742301626258,0.6106814,82582.0,82581.0,0.02503857]
[1742301626859,0.6106814,82582.0,82581.0,0.14614147]
[1742301631764,0.6106814,82582.0,82581.0,0.02503857]
[1742301632456,0.6106814,82582.0,82581.0,0.14614147]
[1742301633457,0.6106814,82582.0,82581.0,0.02503857]
[1742301633664,0.6106814,82582.0,82581.0,0.002]
[1742301634068,0.6106814,82582.0,82581.0,0.1231029]
[1742301634264,0.6106814,82582.0,82581.0,0.002]
[1742301634673,0.6108014,82582.0,82581.0,0.002]
[1742301635271,0.4928014,82582.0,82581.0,0.002]
[1742301635471,0.6107614,82582.0,82581.0,0.002]
[1742301636165,0.6107614,82582.0,82581.0,0.1231029]
[1742301639968,0.6107614,82582.0,82581.0,0.002]
[1742301641273,0.6107614,82582.0,82581.0,0.1231029]
[1742301643364,0.6107614,82582.0,82581.0,0.1816029]
[1742301643865,0.4928014,82582.0,82581.0,0.1816029]
[1742301644064,0.6107614,82582.0,82581.0,0.1816029]
[1742301644269,0.6107614,82582.0,82581.0,0.2387029]
[1742301644979,0.48966,82582.0,82581.0,0.2387029]
[1742301645377,0.6107614,82582.0,82581.0,0.2387029]
[1742301645776,0.3158,82582.0,82581.0,0.2387029]
[1742301645981,0.26,82582.0,82581.0,0.2387029]
[1742301646970,0.3197,82582.0,82581.0,0.2387029]
[1742301649673,0.4408014,82582.0,82581.0,0.2387029]
[1742301650684,0.4984014,82582.0,82581.0,0.2387029]
[1742301651182,0.3773,82582.0,82581.0,0.2387029]
[1742301652068,0.3197,82582.0,82581.0,0.2387029]
[1742301652473,0.26,82582.0,82581.0,0.2387029]
[1742301661390,0.3147,82582.0,82581.0,0.2387029]
[1742301663076,0.3728,82582.0,82581.0,0.2387029]
[1742301663478,0.3728,82582.0,82581.0,0.1816029]
[1742301663686,0.6119414,82582.0,82581.0,0.002]
[1742301663984,0.6119414,82582.0,82576.0,0.00018164]
[1742301663985,0.1211087,82577.0,82576.0,0.00018164]
[1742301664181,0.3811087,82577.0,82576.0,0.12129184]
[1742301664381,0.4931087,82577.0,82576.0,0.12129184]
[1742301665191,0.4931087,82577.0,82576.0,0.12429184]
[1742301665588,0.1816755,82573.0,82572.0,0.0605578]
[1742301665894,0.1211175,82571.0,82570.0,0.1211176]
[1742301666096,0.3611175,82571.0,82570.0,0.1211176]
[1742301666277,0.3611175,82571.0,82570.0,0.14130557]
[1742301666483,0.4731175,82571.0,82570.0,0.14130557]
[1742301666690,0.4731175,82571.0,82570.0,0.02018797]
[1742301666882,0.1211205,82569.0,82568.0,0.0605609]
[1742301667079,0.3611205,82569.0,82568.0,0.0605609]
[1742301667402,0.4761205,82569.0,82568.0,0.0605609]
[1742301668184,0.4761205,82569.0,82568.0,0.08137095]
[1742301668391,0.355,82569.0,82562.0,0.00018164]
[1742301668590,0.1211293,82563.0,82562.0,0.12131094]
[1742301668796,0.5090493,82563.0,82562.0,0.12131094]
[1742301669100,0.6240493,82563.0,82562.0,0.12131094]
[1742301669392,0.6230493,82563.0,82562.0,0.12131094]
[1742301669592,0.6230493,82563.0,82562.0,0.14157862]
[1742301671190,0.6230493,82563.0,82562.0,0.02344932]
[1742301672085,0.5051293,82563.0,82562.0,0.02344932]
[1742301672285,0.6229693,82563.0,82562.0,0.02344932]
[1742301672688,0.6229693,82563.0,82562.0,0.02144932]
[1742301672891,0.6229693,82563.0,82562.0,0.14258002]
[1742301673889,0.6229693,82563.0,82562.0,0.20168002]
[1742301677190,0.6229693,82563.0,82562.0,0.26098002]
[1742301678194,0.385,82563.0,82562.0,0.26098002]
[1742301678395,0.27,82563.0,82562.0,0.26098002]
[1742301678601,0.27,82563.0,82562.0,0.32068002]
[1742301680205,0.3911293,82563.0,82562.0,0.26098002]
[1742301680897,0.3911293,82563.0,82562.0,0.02144932]
[1742301681098,0.7519293,82563.0,82562.0,0.00118164]
[1742301681297,0.1817152,82554.0,82553.0,0.1211428]
[1742301681497,0.5895152,82554.0,82553.0,0.1211828]
[1742301682097,0.7062152,82554.0,82552.0,0.0581]
[1742301682291,0.1211454,82552.0,82551.0,0.0605731]
[1742301682494,0.1181483,82550.0,82549.0,0.1211898]
[1742301682704,0.3781483,82550.0,82549.0,0.1211898]
[1742301682896,0.4355483,82550.0,82549.0,0.1211898]
[1742301683098,0.4929483,82550.0,82549.0,0.14171568]
[1742301683297,0.4929483,82550.0,82549.0,0.14167568]
[1742301684024,0.4929483,82550.0,82549.0,0.19787568]
[1742301684705,0.4899483,82550.0,82549.0,0.19787568]
[1742301684895,0.4899483,82550.0,82549.0,0.25827568]
[1742301685516,0.4899483,82550.0,82549.0,0.26227568]
[1742301686304,0.3748,82550.0,82549.0,0.26227568]
[1742301687014,0.26,82550.0,82549.0,0.26227568]
[1742301687404,0.26,82550.0,82549.0,0.62307568]
[1742301687906,0.23153516,82550.0,82549.0,0.74087568]
[1742301690612,0.19647516,82550.0,82549.0,0.74087568]
[1742301692014,0.1158,82562.0,82561.0,0.1211322]
[1742301692317,0.3083,82562.0,82561.0,0.4819322]
[1742301692518,0.25,82562.0,82561.0,0.6013322]
[1742301694422,0.25,82562.0,82561.0,0.61444938]
[1742301694807,0.25,82562.0,82561.0,0.6013322]
[1742301698725,0.25,82562.0,82561.0,0.61444484]
[1742301700325,0.25,82562.0,82561.0,0.6013322]
[1742301701231,0.25,82562.0,82561.0,0.6043322]
[1742301701420,0.25,82562.0,82561.0,0.5449322]
[1742301701615,0.25,82562.0,82561.0,0.4849322]
[1742301701920,0.25,82562.0,82561.0,0.4829322]
[1742301702122,0.25,82562.0,82561.0,0.5440322]
[1742301702123,0.3097,82562.0,82561.0,0.5440322]
[1742301702527,0.3652,82562.0,82561.0,0.5440322]
[1742301702717,0.3652,82562.0,82561.0,0.5430322]
[1742301703428,0.3652,82562.0,82561.0,0.6006322]
[1742301706922,0.3652,82562.0,82561.0,0.2398322]
[1742301710523,0.25,82562.0,82561.0,0.3575922]
[1742301710724,0.1909309,82562.0,82561.0,0.3575922]
[1742301710930,0.0565,82571.0,82570.0,0.121119]
[1742301711131,0.3165,82571.0,82570.0,0.481919]
[1742301711427,0.3165,82571.0,82570.0,0.540819]
[1742301712223,0.3185,82571.0,82570.0,0.597319]
[1742301712733,0.262,82571.0,82570.0,0.597319]
[1742301713831,0.0598,82581.0,82571.0,0.1211175]
[1742301714040,0.1153,82580.0,82573.0,0.1211146]
[1742301714227,0.1153,82580.0,82573.0,0.2388746]
[1742301714538,0.1153,82580.0,82573.0,0.2978746]
[1742301714722,0.1153,82580.0,82573.0,0.3557746]
[1742301715229,0.1153,82580.0,82573.0,0.7165746]
[1742301717535,0.1153,82580.0,82573.0,0.7185746]
[1742301718725,0.1153,82580.0,82573.0,0.7165746]
[1742301718926,0.1153,82580.0,82573.0,0.7185746]
[1742301722024,0.0605356,82603.0,82573.0,0.59746]
[1742301722238,0.0618,82599.0,82598.0,0.1210779]
[1742301722431,0.2918,82599.0,82598.0,0.1210779]
[1742301724946,0.4128765,82599.0,82598.0,0.1210779]
[1742301725442,0.4714765,82599.0,82598.0,0.14626965]
[1742301727543,0.4109,82599.0,82598.0,0.14626965]
[1742301728244,0.5319765,82599.0,82598.0,0.14626965]
[1742301728445,0.4109,82599.0,82598.0,0.14626965]
[1742301728632,0.5319765,82599.0,82598.0,0.14626965]
[1742301732246,0.5319765,82599.0,82598.0,0.02519175]
[1742301732450,0.1210779,82598.0,82597.0,4e-05]
[1742301732639,0.4010779,82598.0,82597.0,4e-05]
[1742301732832,0.5212779,82598.0,82597.0,4e-05]
[1742301734943,0.5212779,82598.0,82597.0,0.02600549]
[1742301736251,0.1211029,82581.0,82580.0,4e-05]
[1742301736452,0.1211175,82571.0,82570.0,0.87964]
[1742301736648,0.3711175,82571.0,82570.0,0.87964]
[1742301736858,0.1211278,82564.0,82563.0,0.3608]
[1742301737051,0.3711278,82564.0,82563.0,0.4819293]
[1742301737247,0.3711278,82564.0,82563.0,0.38710005]
[1742301737548,0.4903278,82564.0,82563.0,0.38710005]
[1742301737938,0.4903278,82564.0,82563.0,0.50822935]
[1742301738459,0.4903278,82564.0,82563.0,0.63642935]
[1742301738649,0.4903278,82564.0,82563.0,0.64564333]
[1742301739351,0.4903278,82564.0,82563.0,0.28484333]
[1742301743255,0.4903278,82564.0,82563.0,0.16164333]
[1742301743556,0.4903278,82564.0,82563.0,0.02730005]
[1742301746554,0.4903278,82564.0,82563.0,0.02630005]
[1742301746858,0.1211293,82563.0,82562.0,0.1211706]
[1742301747057,0.3911293,82563.0,82562.0,0.1211706]
[1742301747257,0.5059293,82563.0,82562.0,0.1211706]
[1742301748854,0.5059293,82563.0,82562.0,0.14682055]
[1742301749060,0.5059293,82563.0,82562.0,0.02568995]
[1742301753953,0.6236893,82563.0,82562.0,0.02568995]
[1742301754166,0.6236893,82563.0,82562.0,0.02564995]
[1742301754366,0.1211307,82562.0,82561.0,0.1211709]
[1742301754565,0.3511307,82562.0,82561.0,0.1211709]
[1742301754865,0.4728307,82562.0,82561.0,0.1211709]
[1742301755665,0.4728307,82562.0,82561.0,0.1820709]
[1742301755865,0.4728307,82562.0,82561.0,0.08599021]
[1742301756455,0.4738307,82562.0,82561.0,0.08599021]
[1742301756862,0.4738307,82562.0,82561.0,0.20712241]
[1742301757767,0.4738307,82562.0,82561.0,0.08599021]
[1742301758256,0.4738307,82562.0,82561.0,0.14749021]
[1742301758457,0.4738307,82562.0,82561.0,0.26862241]
[1742301758660,0.4738307,82562.0,82561.0,0.14749021]
[1742301760369,0.4738307,82562.0,82561.0,0.26862241]
[1742301760968,0.4738307,82562.0,82561.0,0.14749021]
[1742301761170,0.4738307,82562.0,82561.0,0.02509021]
[1742301762962,0.4738307,82562.0,82561.0,0.14719021]
[1742301768276,0.4738307,82562.0,82561.0,0.26832241]
[1742301768773,0.231,82562.0,82561.0,0.62912241]
[1742301768975,0.39,82575.0,82571.0,0.1211175]
[1742301769176,0.21018164,82572.0,82571.0,0.1211175]
[1742301769379,0.33129774,82572.0,82571.0,0.3007175]
[1742301769965,0.44905774,82572.0,82571.0,0.3007175]
[1742301770164,0.51115774,82572.0,82571.0,0.3007175]
[1742301773370,0.57385774,82572.0,82571.0,0.3007175]
[1742301774278,0.57385774,82572.0,82571.0,0.1228]
[1742301775467,0.57385774,82572.0,82571.0,0.2439175]
[1742301779675,0.33129774,82572.0,82571.0,0.2439175]
[1742301779880,0.44905774,82572.0,82571.0,0.2439175]
[1742301782169,0.21018164,82572.0,82571.0,0.2439175]
[1742301782372,0.0598,82592.0,82583.0,0.1210999]
[1742301782570,0.5308,82584.0,82583.0,0.1210999]
[1742301782776,0.17,82584.0,82583.0,0.1210999]
[1742301782980,0.17,82584.0,82583.0,0.2973999]
[1742301783180,0.1816239,82596.0,82595.0,0.1210823]
[1742301783492,0.5593839,82596.0,82595.0,0.1210823]
[1742301783674,0.5593839,82596.0,82595.0,0.2973823]
[1742301783875,0.5593839,82596.0,82595.0,0.38408705]
[1742301783876,0.37776,82596.0,82595.0,0.38408705]
[1742301784279,0.4988409,82596.0,82595.0,0.38408705]
[1742301785579,0.26,82596.0,82595.0,0.38408705]
[1742301786170,0.26,82596.0,82595.0,0.39320289]
[1742301789887,0.262,82596.0,82595.0,0.39320289]
[1742301795076,0.26,82596.0,82595.0,0.39320289]
[1742301796789,0.26,82596.0,82595.0,0.39620289]
[1742301797094,0.1,82600.0,82595.0,0.39620289]
[1742301797095,0.0915016,82600.0,82599.0,0.1210765]
[1742301797289,0.0915016,82600.0,82599.0,0.2387565]
[1742301797479,0.0915016,82600.0,82599.0,0.3622565]
[1742301798280,0.3415016,82600.0,82599.0,0.3622565]
[1742301798489,0.3415016,82600.0,82599.0,0.3632565]
[1742301799386,0.3415016,82600.0,82599.0,0.3652565]
[1742301802782,0.4009016,82600.0,82599.0,0.3652565]
[1742301804687,0.4009016,82600.0,82599.0,0.2475765]
[1742301804891,0.5219766,82600.0,82599.0,0.2475765]
[1742301805396,0.5832766,82600.0,82599.0,0.2475765]
[1742301805693,0.4622016,82600.0,82599.0,0.2475765]
[1742301807895,0.3415016,82600.0,82599.0,0.2475765]
[1742301808101,0.3415016,82600.0,82599.0,0.3054765]
[1742301808493,0.3415016,82600.0,82599.0,0.4231565]
[1742301810795,0.3415016,82600.0,82599.0,0.3652565]
[1742301813886,0.31249959,82600.0,82599.0,0.3652565]
[1742301814088,0.01601213,82600.0,82599.0,0.3652565]
[1742301814493,0.01601213,82600.0,82599.0,0.37846998]
[1742301814895,0.00022164,82604.0,82603.0,0.1210706]
[1742301815098,0.00022164,82604.0,82603.0,0.4818706]
[1742301815405,0.00022164,82604.0,82603.0,0.5938706]
[1742301815588,0.00018164,82604.0,82603.0,0.5938706]
[1742301815794,0.00018164,82604.0,82603.0,0.60710151]
[1742301816199,0.00018164,82604.0,82603.0,0.60810151]
[1742301816401,0.00018164,82604.0,82603.0,0.60808569]
[1742301818102,4e-05,82605.0,82604.0,0.1210691]
[1742301818297,4e-05,82605.0,82604.0,0.13428419]
[1742301818503,4e-05,82605.0,82604.0,0.24348419]
[1742301819121,0.25004,82605.0,82604.0,0.24348419]
[1742301819402,0.36164,82605.0,82604.0,0.2312691]
[1742301819909,0.30394,82605.0,82604.0,0.24449708]
[1742301822292,0.36324,82605.0,82604.0,0.24449708]
[1742301822491,0.25004,82605.0,82604.0,0.24449708]
[1742301822703,0.02366213,82610.0,82604.0,0.18396248]
[1742301822896,4e-05,82611.0,82610.0,0.1210604]
[1742301823207,0.00018164,82613.0,82612.0,0.1210574]
[1742301823393,0.26018164,82613.0,82612.0,0.2386974]
[1742301823706,0.26018164,82613.0,82612.0,0.3559974]
[1742301826608,0.31398164,82613.0,82612.0,0.3559974]
[1742301834113,0.31398164,82613.0,82612.0,0.36923165]
[1742301836620,0.31398164,82613.0,82612.0,0.36924953]
[1742301838323,0.11764,82639.0,82612.0,0.24819213]
[1742301838522,0.0544,82625.0,82624.0,0.1210398]
[1742301838713,0.2844,82625.0,82624.0,1.0836607]
[1742301839105,0.2844,82625.0,82624.0,0.3620607]
[1742301839309,0.0605247,82618.0,82616.0,0.00018153]
[1742301839509,0.2898501,82617.0,82616.0,0.12123313]
[1742301839720,0.4288,82617.0,82616.0,0.12123313]
[1742301840324,0.43044,82617.0,82616.0,0.12123313]
[1742301840521,0.43044,82617.0,82616.0,0.17507313]
[1742301840823,0.5514901,82617.0,82616.0,0.12247313]
[1742301843017,0.55160808,82617.0,82616.0,0.12247313]
[1742301843926,0.55160808,82617.0,82613.0,0.0605274]
[1742301843927,0.1210545,82615.0,82613.0,0.0605274]
[1742301844230,0.1210574,82612.0,82611.0,0.1815845]
[1742301844421,0.3910574,82612.0,82611.0,0.1815845]
[1742301845420,0.1210589,82611.0,82610.0,0.1211002]
[1742301845617,0.3910589,82611.0,82610.0,0.1211002]
[1742301845923,0.1210633,82608.0,82607.0,4e-05]
[1742301846131,0.1210633,82608.0,82601.0,0.121713]
[1742301846132,0.1210721,82602.0,82601.0,0.121713]
[1742301846315,0.1210809,82598.0,82597.0,0.1210768]
[1742301846515,0.3610809,82598.0,82597.0,0.1210768]
[1742301846820,0.4174809,82598.0,82597.0,0.1210768]
[1742301847924,0.4174809,82598.0,82597.0,0.0605375]
[1742301851234,0.4464,82598.0,82571.0,0.0605577]
[1742301851532,0.4464,82598.0,82557.0,0.57845681]
[1742301851533,0.7216,82578.0,82557.0,0.21765681]
[1742301851724,0.1211366,82558.0,82557.0,0.45992831]
[1742301851925,0.5199766,82558.0,82557.0,0.45992831]
[1742301852234,0.5199766,82558.0,82557.0,0.48349994]
[1742301852427,0.5139766,82558.0,82557.0,0.48349994]
[1742301852831,0.5139766,82558.0,82557.0,0.48549994]
[1742301854720,0.5139766,82558.0,82557.0,0.26784313]
[1742301854916,0.39884,82558.0,82557.0,0.26784313]
[1742301855935,0.39884,82558.0,82557.0,0.26684313]
[1742301856430,0.5199766,82558.0,82557.0,0.26684313]
[1742301856635,0.39884,82558.0,82557.0,0.26584313]
[1742301856820,0.28,82558.0,82557.0,0.62664313]
[1742301857025,0.01738201,82558.0,82557.0,0.74548313]
[1742301857426,0.01838201,82558.0,82557.0,0.74548313]
[1742301857633,0.001,82558.0,82557.0,0.74548313]
[1742301858422,0.3608,82604.0,82558.0,0.6056832]
[1742301858624,0.25,82604.0,82594.0,0.1127444]
[1742301858821,0.25,82604.0,82603.0,0.1210706]
[1742301859434,0.25,82604.0,82603.0,0.13010573]
[1742301859736,0.25,82604.0,82603.0,0.20667997]
[1742301861640,0.25,82604.0,82603.0,0.26337997]
[1742301861938,0.25,82604.0,82603.0,0.26537997]
[1742301868439,0.25,82604.0,82603.0,0.26437997]
[1742301870033,0.25,82604.0,82603.0,0.14664484]
[1742301870433,0.36844,82604.0,82603.0,0.14664484]
[1742301871234,0.48324,82604.0,82603.0,0.14764484]
[1742301871932,0.48324,82604.0,82603.0,0.14664484]
[1742301872122,0.48324,82604.0,82603.0,0.14564484]
[1742301872725,0.48324,82604.0,82603.0,0.14464484]
[1742301872923,0.48324,82604.0,82603.0,0.14664484]
[1742301874523,0.48324,82604.0,82603.0,0.14764484]
[1742301875239,0.23324,82604.0,82603.0,0.20474484]
[1742301875435,0.48324,82604.0,82603.0,0.20374484]
[1742301876429,0.48324,82604.0,82603.0,0.14664484]
[1742301877442,0.48324,82604.0,82603.0,0.20374484]
[1742301880628,0.6043091,82604.0,82603.0,0.20374484]
[1742301880830,0.48324,82604.0,82603.0,0.20374484]
[1742301882334,0.48324,82604.0,82603.0,0.26364484]
[1742301883042,0.3648,82604.0,82603.0,0.26364484]
[1742301886637,0.3648,82604.0,82603.0,0.14664484]
[1742301886843,0.4858691,82604.0,82603.0,0.14664484]
[1742301887245,0.3648,82604.0,82603.0,0.14664484]
[1742301888249,0.3648,82604.0,82603.0,0.20444484]
[1742301889741,0.3648,82604.0,82603.0,0.26444484]
[1742301890243,0.4858691,82604.0,82603.0,0.26444484]
[1742301891242,0.3648,82604.0,82603.0,0.26444484]
[1742301892448,0.4858691,82604.0,82603.0,0.26444484]
[1742301894159,0.3648,82604.0,82603.0,0.26444484]
[1742301895845,0.4858691,82604.0,82603.0,0.26444484]
[1742301897150,0.3648,82604.0,82603.0,0.26444484]
[1742301899957,0.4858691,82604.0,82603.0,0.26444484]
[1742301900346,0.4858691,82604.0,82598.0,4e-05]
[1742301900347,0.1210765,82599.0,82598.0,4e-05]
[1742301900553,0.1816207,82598.0,82597.0,0.1210781]
[1742301900853,0.5577207,82598.0,82597.0,0.1210781]
[1742301901557,0.5547207,82598.0,82597.0,0.1210781]
[1742301901748,0.5527207,82598.0,82597.0,0.1210781]
[1742301902147,0.5527207,82598.0,82597.0,0.1240781]
[1742301902661,0.5527207,82598.0,82597.0,0.14554457]
[1742301903362,0.5527207,82598.0,82597.0,0.14754457]
[1742301904857,0.5527207,82598.0,82597.0,0.02646647]
[1742301905965,0.5527207,82598.0,82592.0,0.0578]
[1742301905966,0.121097,82585.0,82584.0,0.0605487]
[1742301906257,1.240377,82585.0,82584.0,0.0605487]
[1742301906458,1.411877,82585.0,82584.0,0.0605487]
[1742301907257,1.411877,82585.0,82584.0,0.13822388]
[1742301907759,1.412877,82585.0,82584.0,0.14322388]
[1742301907963,1.413877,82585.0,82584.0,0.14822388]
[1742301908859,1.413877,82585.0,82584.0,0.20877368]
[1742301909063,1.413877,82585.0,82584.0,0.08767518]
[1742301909369,1.412877,82585.0,82584.0,0.20477368]
[1742301909659,1.411877,82585.0,82584.0,0.26087368]
[1742301911568,1.411877,82585.0,82584.0,0.20177368]
[1742301912066,1.411877,82585.0,82584.0,0.14547368]
[1742301912857,1.411877,82585.0,82584.0,0.20347368]
[1742301913253,1.411877,82585.0,82584.0,0.26047368]
[1742301913665,1.411877,82585.0,82584.0,0.25847368]
[1742301913872,1.413877,82585.0,82584.0,0.25847368]
[1742301914669,1.296197,82585.0,82584.0,0.25847368]
[1742301914871,0.6428,82585.0,82584.0,0.25747368]
[1742301915051,0.6468,82585.0,82584.0,0.31537368]
[1742301915974,0.767897,82585.0,82584.0,0.31537368]
[1742301916160,0.822897,82585.0,82584.0,0.31537368]
[1742301916357,0.767897,82585.0,82584.0,0.31537368]
[1742301918153,0.286,82585.0,82584.0,0.31537368]
[1742301919372,0.407097,82585.0,82584.0,0.13637518]
[1742301919558,0.579197,82585.0,82584.0,0.13637518]
[1742301919872,0.579197,82585.0,82584.0,0.25747368]
[1742301920460,0.579197,82585.0,82584.0,0.07937518]
[1742301921077,0.579197,82585.0,82584.0,0.13617518]
[1742301921473,0.579197,82585.0,82584.0,0.25727368]
[1742301922569,0.57928453,82585.0,82584.0,0.25727368]
[1742301931171,0.28608753,82585.0,82584.0,0.25727368]
[1742301935265,0.40718453,82585.0,82584.0,0.25727368]
[1742301935976,0.28608753,82585.0,82584.0,0.25727368]
[1742301937579,0.40718453,82585.0,82584.0,0.25727368]
[1742301937879,0.46718453,82585.0,82584.0,0.25727368]
[1742301938176,0.52828453,82585.0,82584.0,0.25727368]
[1742301939081,0.40718753,82585.0,82584.0,0.25727368]
[1742301939275,0.28608753,82585.0,82584.0,0.25727368]
[1742301942168,0.40718453,82585.0,82584.0,0.25727368]
[1742301942374,0.52458453,82585.0,82584.0,0.25727368]
[1742301945269,0.40348753,82585.0,82584.0,0.25727368]
[1742301946075,0.28608753,82585.0,82584.0,0.25727368]
[1742301947972,0.01671708,82585.0,82584.0,0.25727368]
[1742301948179,0.11768,82604.0,82603.0,0.1210706]
[1742301948482,0.38768,82604.0,82603.0,0.1210706]
[1742301948680,0.448,82604.0,82603.0,0.1210706]
[1742301948882,0.33,82604.0,82603.0,0.2380706]
[1742301949573,0.33,82604.0,82603.0,0.2390706]
[1742301950083,0.33,82604.0,82603.0,0.2380706]
[1742301950286,0.331,82604.0,82603.0,0.2380706]
[1742301958679,0.271,82604.0,82603.0,0.2380706]
[1742301960889,0.445,82604.0,82603.0,0.2380706]
[1742301961708,0.5660691,82604.0,82603.0,0.2380706]
[1742301961994,0.5660691,82604.0,82603.0,0.1210706]
[1742301962293,0.0605353,82603.0,82598.0,0.0606]
[1742301962480,0.0605353,82603.0,82595.0,0.00018164]
[1742301962481,0.1210809,82596.0,82595.0,0.00018164]
[1742301962685,0.1210908,82591.0,82590.0,0.1210823]
[1742301962880,0.7218908,82591.0,82590.0,0.1210823]
[1742301963597,0.7208908,82591.0,82590.0,0.1210823]
[1742301963891,0.6573445,82591.0,82590.0,0.1210823]
[1742301964092,0.6573445,82591.0,82590.0,0.1785823]
[1742301964799,0.7160445,82591.0,82590.0,0.1210823]
[1742301965185,0.7733445,82591.0,82590.0,0.1210823]
[1742301965792,0.0605402,82597.0,82590.0,0.1210823]
[1742301965793,0.35,82604.0,82603.0,0.1210706]
[1742301965980,4e-05,82605.0,82604.0,0.1210691]
[1742301966174,0.0757282,82605.0,82604.0,0.2345691]
[1742301966380,0.0757282,82605.0,82604.0,0.2906691]
[1742301967389,0.0787282,82605.0,82604.0,0.2906691]
[1742301967890,0.0797282,82605.0,82604.0,0.2906691]
[1742301968283,0.0797282,82605.0,82604.0,0.2345691]
[1742301969285,0.0767282,82605.0,82604.0,0.2345691]
[1742301971086,0.0767282,82605.0,82604.0,0.2948691]
[1742301971895,0.1956282,82605.0,82604.0,0.2948691]
[1742301972602,0.1956282,82605.0,82604.0,0.2345691]
[1742301978497,0.3166959,82605.0,82604.0,0.1210691]
[1742301978804,0.1210706,82603.0,82602.0,4e-05]
[1742301979004,0.1210706,82603.0,82594.0,4e-05]
[1742301979005,0.1816227,82597.0,82596.0,0.1816154]
[1742301979298,0.5394227,82597.0,82596.0,0.1816154]
[1742301979684,0.7139227,82597.0,82596.0,0.1816154]
[1742301979885,0.7139227,82597.0,82596.0,0.0605389]
[1742301980307,0.7139227,82597.0,82587.0,0.060547]
[1742301980308,0.5323,82597.0,82574.0,0.06984378]
[1742301980491,0.481897,82585.0,82584.0,0.1210985]
[1742301980687,0.837777,82585.0,82584.0,0.14757072]
[1742301980894,1.011277,82585.0,82584.0,0.14757072]
[1742301981603,1.011277,82585.0,82584.0,0.15257072]
[1742301982802,1.011277,82585.0,82584.0,0.15757072]
[1742301983391,1.012277,82585.0,82584.0,0.15257072]
[1742301984501,1.014277,82585.0,82584.0,0.14757072]
[1742301985094,1.014277,82585.0,82584.0,0.14761072]
[1742301985291,1.014277,82585.0,82584.0,0.20691072]
[1742301987495,1.014277,82585.0,82584.0,0.26951072]
[1742301989414,1.014277,82585.0,82584.0,0.26947072]
[1742301990011,1.014277,82585.0,82584.0,0.26951072]
[1742301990308,1.014277,82585.0,82584.0,0.14761072]
[1742301991307,1.014277,82585.0,82584.0,0.20741072]
[1742301991809,1.014277,82585.0,82584.0,0.02651222]
[1742301992212,1.014277,82585.0,82584.0,0.14761072]
[1742301992706,1.014277,82585.0,82584.0,4e-05]
[1742301992707,0.896397,82585.0,82584.0,4e-05]
[1742301992895,0.1211293,82563.0,82562.0,0.1223633]
[1742301993093,0.3811293,82563.0,82562.0,0.1223633]
[1742301993295,0.3811293,82563.0,82562.0,0.14881097]
[1742301993703,0.3811293,82563.0,82562.0,0.08701097]
[1742301994114,0.4991293,82563.0,82562.0,0.14941097]
[1742301994411,0.6211293,82563.0,82562.0,0.14941097]
[1742301995796,0.6211293,82563.0,82562.0,0.20861097]
[1742301996201,0.6211293,82563.0,82562.0,0.21361097]
[1742301996501,0.6211293,82563.0,82562.0,0.01]
[1742301996704,0.6211293,82563.0,82562.0,0.1311307]
[1742301997902,0.6251293,82563.0,82562.0,0.1261307]
[1742301998312,0.6301293,82563.0,82562.0,0.1221307]
[1742301998617,0.6301293,82563.0,82562.0,0.001]
[1742301998914,0.181702,82560.0,82559.0,0.1211341]
[1742301999231,0.802502,82560.0,82559.0,0.2431341]
[1742302000510,0.811502,82560.0,82559.0,0.2431341]
[1742302001200,0.6298,82560.0,82559.0,0.2431341]
[1742302001400,0.7509337,82560.0,82559.0,0.2431341]
[1742302002014,0.8734337,82560.0,82559.0,0.2431341]
[1742302013324,0.8684337,82560.0,82559.0,0.2431341]
[1742302013528,0.8714337,82560.0,82559.0,0.2431341]
[1742302013826,0.8694337,82560.0,82559.0,0.2431341]
[1742302014233,0.8664337,82560.0,82559.0,0.2431341]
[1742302014427,0.8704337,82560.0,82559.0,0.2431341]
[1742302014919,0.9883137,82560.0,82559.0,0.2431341]
[1742302016129,0.86718,82560.0,82559.0,0.2431341]
[1742302016432,0.86618,82560.0,82559.0,0.2431341]
[1742302017022,0.86418,82560.0,82559.0,0.2431341]
[1742302017223,0.86718,82560.0,82559.0,0.2431341]
[1742302017527,0.9883137,82560.0,82559.0,0.2431341]
[1742302019832,0.6275137,82560.0,82559.0,0.2431341]
[1742302021527,0.5676137,82560.0,82559.0,0.2431341]
[1742302022118,0.6306137,82560.0,82559.0,0.2431341]
[1742302030828,0.6306137,82560.0,82559.0,0.2418841]
[1742302033429,0.5127337,82560.0,82559.0,0.2418841]
[1742302033629,0.6304537,82560.0,82559.0,0.2418841]
[1742302033828,0.50932,82560.0,82559.0,0.2418841]
[1742302034027,0.44632,82560.0,82559.0,0.2418841]
[1742302034229,0.50372,82560.0,82559.0,0.2418841]
[1742302035537,0.6248537,82560.0,82559.0,0.2418841]
[1742302040433,0.5071337,82560.0,82559.0,0.2418841]
[1742302040641,0.6251737,82560.0,82559.0,0.2418841]
[1742302041138,0.9859737,82560.0,82559.0,0.2418841]
[1742302041334,0.1211351,82559.0,82558.0,0.02621145]
[1742302041543,0.4581351,82559.0,82558.0,0.14734805]
[1742302041842,0.5746351,82559.0,82558.0,0.14734805]